[Event "Titled Tuesday Blitz November 07 Early 2023"]
[White "Liyanage, Ranindu Dilshan"]
[Black "Thomforde-Toates, Noah"]
[WhiteFideId "9915834"]
[BlackFideId "30951992"]
[WhiteElo "2772"]
[BlackElo "2651"]
[Result "0-1"]
[Round "10"]
[TimeControl "180+1"]
[Date "2023.11.07"]
[WhiteClock "0:01:16"]
[BlackClock "0:01:23"]
[Board "48"]

1. e4 {[%clk 0:02:49]}  c5 {[%clk 0:02:56]} 2. Nf3 {[%clk 0:02:49]}  g6 {[%clk 0:02:56]} 3. c3 {[%clk 0:02:48]}  Bg7 {[%clk 0:02:56]} 4. d4 {[%clk 0:02:49]}  cxd4 {[%clk 0:02:57]} 5. cxd4 {[%clk 0:02:49]}  Nf6 {[%clk 0:02:57]} 6. e5 {[%clk 0:02:44]}  Nd5 {[%clk 0:02:56]} 7. Bc4 {[%clk 0:02:42]}  Nb6 {[%clk 0:02:54]} 8. Bb3 {[%clk 0:02:42]}  d6 {[%clk 0:02:50]} 9. Qe2 {[%clk 0:02:41]}  Nc6 {[%clk 0:02:48]} 10. h3 {[%clk 0:02:40]}  dxe5 {[%clk 0:02:45]} 11. dxe5 {[%clk 0:02:41]}  Nd4 {[%clk 0:02:45]} 12. Qe4 {[%clk 0:02:36]}  Nxb3 {[%clk 0:02:39]} 13. axb3 {[%clk 0:02:33]}  Be6 {[%clk 0:02:30]} 14. Nbd2 {[%clk 0:02:24]}  Bd5 {[%clk 0:02:29]} 15. Qe3 {[%clk 0:02:24]}  O-O {[%clk 0:02:26]} 16. O-O {[%clk 0:02:23]}  Qd7 {[%clk 0:02:19]} 17. Ne4 {[%clk 0:02:19]}  Rfd8 {[%clk 0:02:11]} 18. Nc5 {[%clk 0:02:15]}  Qb5 {[%clk 0:02:08]} 19. e6 {[%clk 0:01:49]}  f5 {[%clk 0:01:58]} 20. Nd2 {[%clk 0:01:36]}  f4 {[%clk 0:01:45]} 21. Qxf4 {[%clk 0:01:29]}  Qxc5 {[%clk 0:01:45]} 22. Nf3 {[%clk 0:01:20]}  Rf8 {[%clk 0:01:43]} 23. Qg3 {[%clk 0:01:19]}  Bxf3 {[%clk 0:01:41]} 24. gxf3 {[%clk 0:01:20]}  Qc6 {[%clk 0:01:39]} 25. Re1 {[%clk 0:01:20]}  Rxf3 {[%clk 0:01:37]} 26. Qg4 {[%clk 0:01:20]}  Raf8 {[%clk 0:01:35]} 27. Be3 {[%clk 0:01:20]}  Nd5 {[%clk 0:01:35]} 28. Rac1 {[%clk 0:01:18]}  Nxe3 {[%clk 0:01:30]} 29. fxe3 {[%clk 0:01:16]}  Qd6 {[%clk 0:01:23]} 0-1


[Site "https://www.chess.com"]

[Event "Titled Tuesday Blitz November 07 Early 2023"]
[White "Csonka, Balazs"]
[Black "Arabidze, Meri"]
[WhiteFideId "742910"]
[BlackFideId "13604040"]
[WhiteElo "2762"]
[BlackElo "2639"]
[Result "0-1"]
[Round "10"]
[TimeControl "180+1"]
[Date "2023.11.07"]
[WhiteClock "0:00:02"]
[BlackClock "0:00:03"]
[Board "49"]

1. e4 {[%clk 0:03:00]}  c5 {[%clk 0:03:00]} 2. Nc3 {[%clk 0:02:59]}  e6 {[%clk 0:03:00]} 3. Nf3 {[%clk 0:02:56]}  Nc6 {[%clk 0:03:00]} 4. d4 {[%clk 0:02:53]}  cxd4 {[%clk 0:03:00]} 5. Nxd4 {[%clk 0:02:54]}  a6 {[%clk 0:03:00]} 6. Qd3 {[%clk 0:02:50]}  d6 {[%clk 0:02:55]} 7. Nxc6 {[%clk 0:02:44]}  bxc6 {[%clk 0:02:56]} 8. Qg3 {[%clk 0:02:44]}  Nf6 {[%clk 0:02:48]} 9. Bd3 {[%clk 0:02:28]}  e5 {[%clk 0:02:43]} 10. Be3 {[%clk 0:02:17]}  g6 {[%clk 0:02:43]} 11. O-O-O {[%clk 0:02:13]}  Bg7 {[%clk 0:02:42]} 12. h4 {[%clk 0:02:11]}  h5 {[%clk 0:02:31]} 13. Bg5 {[%clk 0:02:05]}  Qc7 {[%clk 0:02:25]} 14. Bc4 {[%clk 0:01:58]}  a5 {[%clk 0:02:11]} 15. Rd2 {[%clk 0:01:50]}  Nh7 {[%clk 0:01:34]} 16. Be3 {[%clk 0:01:44]}  Nf8 {[%clk 0:01:15]} 17. Rhd1 {[%clk 0:01:37]}  Be6 {[%clk 0:01:15]} 18. Be2 {[%clk 0:01:06]}  Rd8 {[%clk 0:01:14]} 19. Bc5 {[%clk 0:00:53]}  Bh6 {[%clk 0:01:07]} 20. Be3 {[%clk 0:00:54]}  Bg7 {[%clk 0:00:58]} 21. Kb1 {[%clk 0:00:47]}  Nh7 {[%clk 0:00:51]} 22. Na4 {[%clk 0:00:37]}  Nf6 {[%clk 0:00:37]} 23. Bb6 {[%clk 0:00:31]}  Qb8 {[%clk 0:00:35]} 24. Qe3 {[%clk 0:00:19]}  Bh6 {[%clk 0:00:27]} 25. Qf3 {[%clk 0:00:18]}  Ke7 {[%clk 0:00:15]} 26. Bxa5 {[%clk 0:00:11]}  Bg4 {[%clk 0:00:14]} 27. Qa3 {[%clk 0:00:06]}  Bxd2 {[%clk 0:00:13]} 28. Bxd8+ {[%clk 0:00:06]}  Rxd8 {[%clk 0:00:12]} 29. f3 {[%clk 0:00:05]}  Bb4 {[%clk 0:00:10]} 30. Qe3 {[%clk 0:00:06]}  Be6 {[%clk 0:00:10]} 31. Qg5 {[%clk 0:00:06]}  Ba3 {[%clk 0:00:08]} 32. b3 {[%clk 0:00:04]}  Bb4 {[%clk 0:00:08]} 33. f4 {[%clk 0:00:02]}  exf4 {[%clk 0:00:08]} 34. Rf1 {[%clk 0:00:02]}  c5 {[%clk 0:00:06]} 35. Rxf4 {[%clk 0:00:02]}  c4 {[%clk 0:00:03]} 36. Rxf6 {[%clk 0:00:03]}  Kd7 {[%clk 0:00:04]} 37. Qe3 {[%clk 0:00:01]}  Qc7 {[%clk 0:00:02]} 38. Qf3 {[%clk 0:00:01]}  Kc8 {[%clk 0:00:03]} 39. Rf4 {[%clk 0:00:01]}  d5 {[%clk 0:00:03]} 40. exd5 {[%clk 0:00:01]}  Bxd5 {[%clk 0:00:03]} 41. Qf2 {[%clk 0:00:02]}  cxb3 {[%clk 0:00:03]} 42. Nb6+ {[%clk 0:00:02]}  Kb7 {[%clk 0:00:03]} 43. Nxd5 {[%clk 0:00:01]}  Qxc2+ {[%clk 0:00:03]} 44. Ka1 {[%clk 0:00:02]}  Qxa2# {[%clk 0:00:03]} 0-1


[Site "https://www.chess.com"]

[Event "Titled Tuesday Blitz November 07 Early 2023"]
[White "Socko, Bartosz"]
[Black "GatoRojo150"]
[WhiteFideId "1107038"]
[WhiteElo "2738"]
[BlackElo "2613"]
[Result "1-0"]
[Round "10"]
[TimeControl "180+1"]
[Date "2023.11.07"]
[WhiteClock "0:00:05"]
[BlackClock "0:00:00"]
[Board "50"]

1. g3 {[%clk 0:02:56]}  e5 {[%clk 0:02:59]} 2. Bg2 {[%clk 0:02:56]}  Nf6 {[%clk 0:02:55]} 3. c4 {[%clk 0:02:54]}  c6 {[%clk 0:02:50]} 4. Nc3 {[%clk 0:02:52]}  d5 {[%clk 0:02:50]} 5. cxd5 {[%clk 0:02:53]}  cxd5 {[%clk 0:02:51]} 6. d4 {[%clk 0:02:53]}  exd4 {[%clk 0:02:51]} 7. Qxd4 {[%clk 0:02:54]}  Nc6 {[%clk 0:02:51]} 8. Qa4 {[%clk 0:02:48]}  d4 {[%clk 0:02:49]} 9. Nb1 {[%clk 0:02:43]}  Bd7 {[%clk 0:02:38]} 10. Nf3 {[%clk 0:02:40]}  Rc8 {[%clk 0:02:20]} 11. Qd1 {[%clk 0:02:33]}  Bb4+ {[%clk 0:02:02]} 12. Bd2 {[%clk 0:02:32]}  O-O {[%clk 0:02:01]} 13. O-O {[%clk 0:02:31]}  Bc5 {[%clk 0:01:56]} 14. Na3 {[%clk 0:02:23]}  Bxa3 {[%clk 0:01:52]} 15. bxa3 {[%clk 0:02:24]}  Re8 {[%clk 0:01:51]} 16. Re1 {[%clk 0:02:17]}  Bg4 {[%clk 0:01:45]} 17. Qb3 {[%clk 0:02:16]}  Qd7 {[%clk 0:01:37]} 18. Rad1 {[%clk 0:02:13]}  Be6 {[%clk 0:01:35]} 19. Qb2 {[%clk 0:02:11]}  Bd5 {[%clk 0:01:34]} 20. Bf4 {[%clk 0:02:01]}  Bxf3 {[%clk 0:01:13]} 21. Bxf3 {[%clk 0:02:02]}  h5 {[%clk 0:01:07]} 22. Bxc6 {[%clk 0:01:55]}  Rxc6 {[%clk 0:00:58]} 23. Rxd4 {[%clk 0:01:55]}  Qh3 {[%clk 0:00:58]} 24. f3 {[%clk 0:01:49]}  Rb6 {[%clk 0:00:34]} 25. Qd2 {[%clk 0:01:42]}  Qe6 {[%clk 0:00:21]} 26. Bg5 {[%clk 0:01:36]}  Qe5 {[%clk 0:00:14]} 27. Bxf6 {[%clk 0:01:34]}  Qxf6 {[%clk 0:00:14]} 28. Kg2 {[%clk 0:01:29]}  Rbe6 {[%clk 0:00:14]} 29. e4 {[%clk 0:01:28]}  h4 {[%clk 0:00:13]} 30. Rd5 {[%clk 0:01:22]}  h3+ {[%clk 0:00:13]} 31. Kf2 {[%clk 0:01:08]}  Rb6 {[%clk 0:00:12]} 32. Re2 {[%clk 0:00:55]}  Qc6 {[%clk 0:00:10]} 33. Rh5 {[%clk 0:00:42]}  Rb1 {[%clk 0:00:09]} 34. Rxh3 {[%clk 0:00:39]}  Qc5+ {[%clk 0:00:08]} 35. Qe3 {[%clk 0:00:37]}  Qc4 {[%clk 0:00:07]} 36. Rh5 {[%clk 0:00:33]}  Rd8 {[%clk 0:00:07]} 37. Rc5 {[%clk 0:00:32]}  Qa6 {[%clk 0:00:06]} 38. Rd5 {[%clk 0:00:31]}  Rc8 {[%clk 0:00:05]} 39. Kg2 {[%clk 0:00:30]}  Rcc1 {[%clk 0:00:05]} 40. Rd8+ {[%clk 0:00:30]}  Kh7 {[%clk 0:00:05]} 41. Kh3 {[%clk 0:00:22]}  Qe6+ {[%clk 0:00:04]} 42. g4 {[%clk 0:00:22]}  Rg1 {[%clk 0:00:03]} 43. Rd5 {[%clk 0:00:19]}  Rbf1 {[%clk 0:00:03]} 44. Rh5+ {[%clk 0:00:18]}  Kg8 {[%clk 0:00:03]} 45. Rd2 {[%clk 0:00:17]}  g6 {[%clk 0:00:03]} 46. Rd8+ {[%clk 0:00:13]}  Kg7 {[%clk 0:00:03]} 47. Qh6+ {[%clk 0:00:10]}  Kf6 {[%clk 0:00:03]} 48. Qg5+ {[%clk 0:00:08]}  Kg7 {[%clk 0:00:00]} 49. Rh7+ {[%clk 0:00:05]} 1-0


[Site "https://www.chess.com"]

[Event "Titled Tuesday Blitz November 07 Early 2023"]
[White "Shukhman, Anna"]
[Black "Rosen, Eric"]
[WhiteFideId "54180058"]
[BlackFideId "2032562"]
[WhiteElo "2545"]
[BlackElo "2738"]
[Result "1/2-1/2"]
[Round "10"]
[TimeControl "180+1"]
[Date "2023.11.07"]
[WhiteClock "0:00:12"]
[BlackClock "0:00:02"]
[Board "51"]

1. e4 {[%clk 0:03:00]}  c5 {[%clk 0:02:57]} 2. Nf3 {[%clk 0:03:00]}  e6 {[%clk 0:02:56]} 3. d4 {[%clk 0:02:59]}  cxd4 {[%clk 0:02:57]} 4. Nxd4 {[%clk 0:03:00]}  Nc6 {[%clk 0:02:57]} 5. c4 {[%clk 0:03:00]}  Nf6 {[%clk 0:02:56]} 6. Nc3 {[%clk 0:02:58]}  Bb4 {[%clk 0:02:55]} 7. Nxc6 {[%clk 0:02:51]}  bxc6 {[%clk 0:02:53]} 8. e5 {[%clk 0:02:51]}  Ne4 {[%clk 0:02:48]} 9. Qf3 {[%clk 0:02:49]}  Qa5 {[%clk 0:02:19]} 10. a3 {[%clk 0:01:39]}  Bxc3+ {[%clk 0:01:31]} 11. bxc3 {[%clk 0:01:37]}  Qxe5 {[%clk 0:01:31]} 12. Bf4 {[%clk 0:01:20]}  Qf6 {[%clk 0:01:01]} 13. Rc1 {[%clk 0:00:58]}  d5 {[%clk 0:00:59]} 14. Be2 {[%clk 0:00:41]}  O-O {[%clk 0:00:54]} 15. O-O {[%clk 0:00:41]}  e5 {[%clk 0:00:43]} 16. Be3 {[%clk 0:00:40]}  Bf5 {[%clk 0:00:42]} 17. Rfd1 {[%clk 0:00:36]}  Rfd8 {[%clk 0:00:42]} 18. cxd5 {[%clk 0:00:30]}  cxd5 {[%clk 0:00:43]} 19. g4 {[%clk 0:00:30]}  Bg6 {[%clk 0:00:36]} 20. Qxf6 {[%clk 0:00:29]}  Nxf6 {[%clk 0:00:32]} 21. Bf3 {[%clk 0:00:27]}  Be4 {[%clk 0:00:27]} 22. Kg2 {[%clk 0:00:26]}  Nxg4 {[%clk 0:00:22]} 23. Bxe4 {[%clk 0:00:25]}  Nxe3+ {[%clk 0:00:22]} 24. fxe3 {[%clk 0:00:24]}  dxe4 {[%clk 0:00:22]} 25. Rxd8+ {[%clk 0:00:22]}  Rxd8 {[%clk 0:00:23]} 26. Rb1 {[%clk 0:00:23]}  g6 {[%clk 0:00:17]} 27. c4 {[%clk 0:00:20]}  Rd3 {[%clk 0:00:15]} 28. Rc1 {[%clk 0:00:20]}  Kf8 {[%clk 0:00:15]} 29. c5 {[%clk 0:00:20]}  Ke8 {[%clk 0:00:15]} 30. Kf2 {[%clk 0:00:20]}  Kd7 {[%clk 0:00:14]} 31. Rc4 {[%clk 0:00:21]}  Rxa3 {[%clk 0:00:12]} 32. Rxe4 {[%clk 0:00:21]}  f6 {[%clk 0:00:12]} 33. Rh4 {[%clk 0:00:20]}  h5 {[%clk 0:00:13]} 34. Rb4 {[%clk 0:00:20]}  Kc7 {[%clk 0:00:07]} 35. Kf3 {[%clk 0:00:19]}  Rc3 {[%clk 0:00:07]} 36. Ra4 {[%clk 0:00:19]}  a6 {[%clk 0:00:06]} 37. Rxa6 {[%clk 0:00:19]}  f5 {[%clk 0:00:02]} 38. Rxg6 {[%clk 0:00:18]}  f4 {[%clk 0:00:02]} 39. Ke4 {[%clk 0:00:11]}  Rxe3+ {[%clk 0:00:02]} 40. Kd5 {[%clk 0:00:11]}  Rd3+ {[%clk 0:00:02]} 41. Kxe5 {[%clk 0:00:11]}  f3 {[%clk 0:00:03]} 42. Rf6 {[%clk 0:00:11]}  h4 {[%clk 0:00:02]} 43. Ke4 {[%clk 0:00:11]}  Rc3 {[%clk 0:00:02]} 44. Rxf3 {[%clk 0:00:11]}  Rxc5 {[%clk 0:00:02]} 45. Rd3 {[%clk 0:00:11]}  Rc2 {[%clk 0:00:02]} 46. h3 {[%clk 0:00:11]}  Rg2 {[%clk 0:00:02]} 47. Kf4 {[%clk 0:00:11]}  Kc6 {[%clk 0:00:02]} 48. Rd1 {[%clk 0:00:08]}  Kc5 {[%clk 0:00:02]} 49. Rd8 {[%clk 0:00:07]}  Rf2+ {[%clk 0:00:02]} 50. Kg4 {[%clk 0:00:07]}  Rf7 {[%clk 0:00:01]} 51. Kxh4 {[%clk 0:00:07]}  Rh7+ {[%clk 0:00:02]} 52. Kg4 {[%clk 0:00:07]}  Rg7+ {[%clk 0:00:02]} 53. Kf3 {[%clk 0:00:08]}  Rf7+ {[%clk 0:00:03]} 54. Kg2 {[%clk 0:00:08]}  Rg7+ {[%clk 0:00:03]} 55. Kh2 {[%clk 0:00:08]}  Rh7 {[%clk 0:00:03]} 56. Rd3 {[%clk 0:00:07]}  Kc4 {[%clk 0:00:02]} 57. Rf3 {[%clk 0:00:06]}  Rh8 {[%clk 0:00:02]} 58. Kg3 {[%clk 0:00:06]}  Kd5 {[%clk 0:00:02]} 59. h4 {[%clk 0:00:06]}  Ke4 {[%clk 0:00:03]} 60. Rf1 {[%clk 0:00:06]}  Rg8+ {[%clk 0:00:02]} 61. Kh3 {[%clk 0:00:06]}  Rh8 {[%clk 0:00:03]} 62. Kg4 {[%clk 0:00:06]}  Rg8+ {[%clk 0:00:04]} 63. Kh5 {[%clk 0:00:07]}  Rh8+ {[%clk 0:00:04]} 64. Kg5 {[%clk 0:00:07]}  Rg8+ {[%clk 0:00:05]} 65. Kh5 {[%clk 0:00:07]}  Rh8+ {[%clk 0:00:05]} 66. Kg4 {[%clk 0:00:08]}  Rg8+ {[%clk 0:00:05]} 67. Kh3 {[%clk 0:00:08]}  Rh8 {[%clk 0:00:06]} 68. Rf7 {[%clk 0:00:09]}  Ke5 {[%clk 0:00:04]} 69. Kg4 {[%clk 0:00:09]}  Ke6 {[%clk 0:00:03]} 70. Rf5 {[%clk 0:00:09]}  Rg8+ {[%clk 0:00:03]} 71. Rg5 {[%clk 0:00:09]}  Rh8 {[%clk 0:00:03]} 72. h5 {[%clk 0:00:09]}  Kf6 {[%clk 0:00:04]} 73. Rg6+ {[%clk 0:00:10]}  Kf7 {[%clk 0:00:04]} 74. Kg5 {[%clk 0:00:10]}  Ra8 {[%clk 0:00:04]} 75. Rf6+ {[%clk 0:00:10]}  Kg7 {[%clk 0:00:04]} 76. h6+ {[%clk 0:00:10]}  Kh7 {[%clk 0:00:04]} 77. Rf7+ {[%clk 0:00:11]}  Kg8 {[%clk 0:00:04]} 78. Kg6 {[%clk 0:00:11]}  Ra6+ {[%clk 0:00:03]} 79. Rf6 {[%clk 0:00:11]}  Ra8 {[%clk 0:00:04]} 80. h7+ {[%clk 0:00:11]}  Kh8 {[%clk 0:00:04]} 81. Kh6 {[%clk 0:00:12]}  Rd8 {[%clk 0:00:04]} 82. Rg6 {[%clk 0:00:12]}  Rd6 {[%clk 0:00:02]} 83. Rxd6 {[%clk 0:00:12]} 1/2-1/2


[Site "https://www.chess.com"]

[Event "Titled Tuesday Blitz November 07 Early 2023"]
[White "Marchesich, Giovanni"]
[Black "Rakotomaharo, Fy Antenaina"]
[WhiteFideId "2824790"]
[BlackFideId "13100050"]
[WhiteElo "2414"]
[BlackElo "2729"]
[Result "1-0"]
[Round "10"]
[TimeControl "180+1"]
[Date "2023.11.07"]
[WhiteClock "0:01:18"]
[BlackClock "0:00:31"]
[Board "52"]

1. e4 {[%clk 0:03:00]}  c5 {[%clk 0:02:55]} 2. Nf3 {[%clk 0:03:00]}  e6 {[%clk 0:02:56]} 3. d4 {[%clk 0:03:00]}  cxd4 {[%clk 0:02:56]} 4. Nxd4 {[%clk 0:03:01]}  a6 {[%clk 0:02:57]} 5. Bd3 {[%clk 0:03:00]}  Nf6 {[%clk 0:02:54]} 6. O-O {[%clk 0:03:00]}  Qc7 {[%clk 0:02:54]} 7. Be3 {[%clk 0:02:58]}  b6 {[%clk 0:02:41]} 8. c4 {[%clk 0:02:57]}  Bb7 {[%clk 0:02:41]} 9. Nd2 {[%clk 0:02:56]}  d6 {[%clk 0:02:33]} 10. f4 {[%clk 0:02:54]}  Nbd7 {[%clk 0:02:32]} 11. b4 {[%clk 0:02:53]}  Be7 {[%clk 0:02:29]} 12. g4 {[%clk 0:02:53]}  h5 {[%clk 0:02:10]} 13. h3 {[%clk 0:02:50]}  hxg4 {[%clk 0:02:10]} 14. hxg4 {[%clk 0:02:50]}  Rh4 {[%clk 0:01:51]} 15. g5 {[%clk 0:02:50]}  Ng4 {[%clk 0:01:51]} 16. Bf2 {[%clk 0:02:38]}  Nxf2 {[%clk 0:01:48]} 17. Rxf2 {[%clk 0:02:39]}  O-O-O {[%clk 0:01:46]} 18. Rh2 {[%clk 0:02:35]}  Rxh2 {[%clk 0:01:41]} 19. Kxh2 {[%clk 0:02:36]}  Rh8+ {[%clk 0:01:41]} 20. Kg3 {[%clk 0:02:35]}  e5 {[%clk 0:01:39]} 21. Nf5 {[%clk 0:02:28]}  exf4+ {[%clk 0:01:39]} 22. Kxf4 {[%clk 0:02:28]}  Ne5 {[%clk 0:01:39]} 23. Nf3 {[%clk 0:02:24]}  Rh3 {[%clk 0:01:26]} 24. Nxe5 {[%clk 0:02:14]}  dxe5+ {[%clk 0:01:26]} 25. Kg4 {[%clk 0:02:14]}  Rh8 {[%clk 0:01:25]} 26. Qf3 {[%clk 0:02:11]}  Bxb4 {[%clk 0:01:23]} 27. Rh1 {[%clk 0:02:08]}  Rd8 {[%clk 0:01:15]} 28. Rh7 {[%clk 0:02:01]}  g6 {[%clk 0:01:12]} 29. Rxf7 {[%clk 0:01:47]}  Qxf7 {[%clk 0:00:47]} 30. Nd6+ {[%clk 0:01:46]}  Rxd6 {[%clk 0:00:48]} 31. Qxf7 {[%clk 0:01:47]}  Rxd3 {[%clk 0:00:49]} 32. Qxg6 {[%clk 0:01:43]}  Rd4 {[%clk 0:00:43]} 33. Qe6+ {[%clk 0:01:40]}  Kd8 {[%clk 0:00:40]} 34. Qxb6+ {[%clk 0:01:36]}  Kc8 {[%clk 0:00:39]} 35. Qxb4 {[%clk 0:01:35]}  Bxe4 {[%clk 0:00:37]} 36. Qc5+ {[%clk 0:01:28]}  Kb7 {[%clk 0:00:38]} 37. Qxe5 {[%clk 0:01:26]}  Rxc4 {[%clk 0:00:39]} 38. Kh5 {[%clk 0:01:22]}  Kb6 {[%clk 0:00:34]} 39. g6 {[%clk 0:01:19]}  Rc6 {[%clk 0:00:31]} 40. g7 {[%clk 0:01:18]} 1-0


[Site "https://www.chess.com"]

[Event "Titled Tuesday Blitz November 07 Early 2023"]
[White "Kotlyar, Kirill"]
[Black "Hayrapetyan, Hovik"]
[WhiteFideId "24145599"]
[BlackFideId "13302639"]
[WhiteElo "2555"]
[BlackElo "2755"]
[Result "1-0"]
[Round "10"]
[TimeControl "180+1"]
[Date "2023.11.07"]
[WhiteClock "0:00:11"]
[BlackClock "0:01:21"]
[Board "54"]

1. d4 {[%clk 0:00:55]}  Nf6 {[%clk 0:02:57]} 2. Bg5 {[%clk 0:00:46]}  d5 {[%clk 0:02:56]} 3. Bxf6 {[%clk 0:00:43]}  exf6 {[%clk 0:02:54]} 4. e3 {[%clk 0:00:44]}  Bd6 {[%clk 0:02:53]} 5. Nd2 {[%clk 0:00:44]}  O-O {[%clk 0:02:52]} 6. g3 {[%clk 0:00:44]}  c6 {[%clk 0:02:52]} 7. Bg2 {[%clk 0:00:45]}  Nd7 {[%clk 0:02:50]} 8. Ne2 {[%clk 0:00:45]}  f5 {[%clk 0:02:51]} 9. c4 {[%clk 0:00:46]}  Nc5 {[%clk 0:02:51]} 10. dxc5 {[%clk 0:00:46]}  Bxc5 {[%clk 0:02:44]} 11. cxd5 {[%clk 0:00:45]}  cxd5 {[%clk 0:02:44]} 12. O-O {[%clk 0:00:45]}  Be6 {[%clk 0:02:44]} 13. Nb3 {[%clk 0:00:44]}  Bb6 {[%clk 0:02:40]} 14. Nbd4 {[%clk 0:00:45]}  Qf6 {[%clk 0:02:35]} 15. Nf4 {[%clk 0:00:44]}  Rad8 {[%clk 0:02:35]} 16. h4 {[%clk 0:00:42]}  g6 {[%clk 0:02:34]} 17. Rc1 {[%clk 0:00:39]}  Rd6 {[%clk 0:02:30]} 18. b4 {[%clk 0:00:33]}  Rfd8 {[%clk 0:02:30]} 19. a4 {[%clk 0:00:32]}  a6 {[%clk 0:02:30]} 20. a5 {[%clk 0:00:30]}  Ba7 {[%clk 0:02:30]} 21. Rc7 {[%clk 0:00:31]}  R6d7 {[%clk 0:02:26]} 22. Qc2 {[%clk 0:00:26]}  Bxd4 {[%clk 0:02:22]} 23. exd4 {[%clk 0:00:26]}  Qxd4 {[%clk 0:02:22]} 24. Rxd7 {[%clk 0:00:25]}  Bxd7 {[%clk 0:02:22]} 25. Nxd5 {[%clk 0:00:23]}  Bb5 {[%clk 0:02:14]} 26. Rd1 {[%clk 0:00:20]}  Qe5 {[%clk 0:02:14]} 27. Qc5 {[%clk 0:00:15]}  Kg7 {[%clk 0:02:14]} 28. Qd4 {[%clk 0:00:12]}  f6 {[%clk 0:02:10]} 29. Qc5 {[%clk 0:00:12]}  Bc6 {[%clk 0:02:04]} 30. Kh2 {[%clk 0:00:13]}  g5 {[%clk 0:02:03]} 31. hxg5 {[%clk 0:00:12]}  fxg5 {[%clk 0:02:04]} 32. Ne3 {[%clk 0:00:12]}  Qxc5 {[%clk 0:01:42]} 33. bxc5 {[%clk 0:00:13]}  Rxd1 {[%clk 0:01:43]} 34. Nxd1 {[%clk 0:00:13]}  Bxg2 {[%clk 0:01:38]} 35. Kxg2 {[%clk 0:00:13]}  Kf6 {[%clk 0:01:39]} 36. f4 {[%clk 0:00:11]}  g4 {[%clk 0:01:25]} 37. Ne3 {[%clk 0:00:11]}  h5 {[%clk 0:01:25]} 38. Kf2 {[%clk 0:00:11]}  Kg6 {[%clk 0:01:23]} 39. Nc4 {[%clk 0:00:11]}  Kf6 {[%clk 0:01:21]} 40. Nd6 {[%clk 0:00:06]}  Ke6 {[%clk 0:01:21]} 41. Nxb7 {[%clk 0:00:07]}  Kd5 {[%clk 0:01:21]} 42. Nd6 {[%clk 0:00:07]}  Kxc5 {[%clk 0:01:22]} 43. Nxf5 {[%clk 0:00:08]}  Kb5 {[%clk 0:01:23]} 44. Ng7 {[%clk 0:00:08]}  Kxa5 {[%clk 0:01:24]} 45. f5 {[%clk 0:00:09]}  Kb4 {[%clk 0:01:23]} 46. f6 {[%clk 0:00:10]}  a5 {[%clk 0:01:21]} 47. f7 {[%clk 0:00:11]} 1-0


[Site "https://www.chess.com"]

[Event "Titled Tuesday Blitz November 07 Early 2023"]
[White "Lymar, Vladislav"]
[Black "Perez Gormaz, Matias"]
[WhiteFideId "14162180"]
[BlackFideId "3406342"]
[WhiteElo "2545"]
[BlackElo "2713"]
[Result "0-1"]
[Round "10"]
[TimeControl "180+1"]
[Date "2023.11.07"]
[WhiteClock "0:00:04"]
[BlackClock "0:00:30"]
[Board "56"]

1. d4 {[%clk 0:03:00]}  Nf6 {[%clk 0:02:58]} 2. c4 {[%clk 0:03:01]}  e6 {[%clk 0:02:58]} 3. Bf4 {[%clk 0:03:01]}  d5 {[%clk 0:02:52]} 4. cxd5 {[%clk 0:03:02]}  exd5 {[%clk 0:02:53]} 5. e3 {[%clk 0:03:02]}  Bd6 {[%clk 0:02:54]} 6. Bxd6 {[%clk 0:03:03]}  Qxd6 {[%clk 0:02:54]} 7. Bd3 {[%clk 0:03:03]}  Bg4 {[%clk 0:02:53]} 8. Qb3 {[%clk 0:03:01]}  Nbd7 {[%clk 0:02:48]} 9. Nc3 {[%clk 0:02:48]}  O-O {[%clk 0:02:39]} 10. Nge2 {[%clk 0:02:41]}  Bxe2 {[%clk 0:02:36]} 11. Bxe2 {[%clk 0:02:31]}  c6 {[%clk 0:02:36]} 12. O-O {[%clk 0:02:28]}  Rab8 {[%clk 0:02:36]} 13. Rac1 {[%clk 0:02:14]}  Rfe8 {[%clk 0:02:36]} 14. Bd3 {[%clk 0:02:12]}  Ng4 {[%clk 0:02:34]} 15. g3 {[%clk 0:02:10]}  Qh6 {[%clk 0:02:35]} 16. h4 {[%clk 0:01:57]}  Nxe3 {[%clk 0:02:30]} 17. Rfe1 {[%clk 0:01:39]}  Nf6 {[%clk 0:02:01]} 18. Na4 {[%clk 0:01:07]}  Neg4 {[%clk 0:01:56]} 19. Qc2 {[%clk 0:00:59]}  g6 {[%clk 0:01:43]} 20. Nc5 {[%clk 0:00:52]}  Kg7 {[%clk 0:01:19]} 21. Rxe8 {[%clk 0:00:44]}  Rxe8 {[%clk 0:01:20]} 22. Nxb7 {[%clk 0:00:44]}  Nxf2 {[%clk 0:01:20]} 23. Kxf2 {[%clk 0:00:18]}  Ng4+ {[%clk 0:01:20]} 24. Kf3 {[%clk 0:00:14]}  f5 {[%clk 0:01:10]} 25. Nd6 {[%clk 0:00:09]}  Re3+ {[%clk 0:00:33]} 26. Kg2 {[%clk 0:00:09]}  Re6 {[%clk 0:00:34]} 27. Nxf5+ {[%clk 0:00:08]}  gxf5 {[%clk 0:00:34]} 28. Qc5 {[%clk 0:00:06]}  Qd2+ {[%clk 0:00:32]} 29. Kf3 {[%clk 0:00:04]}  Qf2# {[%clk 0:00:30]} 0-1


[Site "https://www.chess.com"]

[Event "Titled Tuesday Blitz November 07 Early 2023"]
[White "Ovetchkin, Roman"]
[Black "Bettalli, Francesco"]
[WhiteFideId "4119991"]
[BlackFideId "2816453"]
[WhiteElo "2680"]
[BlackElo "2536"]
[Result "0-1"]
[Round "10"]
[TimeControl "180+1"]
[Date "2023.11.07"]
[WhiteClock "0:01:05"]
[BlackClock "0:01:37"]
[Board "59"]

1. d4 {[%clk 0:02:58]}  Nf6 {[%clk 0:02:49]} 2. c4 {[%clk 0:02:58]}  c5 {[%clk 0:02:40]} 3. d5 {[%clk 0:02:58]}  a6 {[%clk 0:02:36]} 4. g3 {[%clk 0:02:51]}  b5 {[%clk 0:02:32]} 5. Bg2 {[%clk 0:02:52]}  Bb7 {[%clk 0:02:31]} 6. e4 {[%clk 0:02:51]}  d6 {[%clk 0:02:31]} 7. Nd2 {[%clk 0:02:42]}  e6 {[%clk 0:02:21]} 8. Ne2 {[%clk 0:02:38]}  g6 {[%clk 0:02:19]} 9. O-O {[%clk 0:02:37]}  Bg7 {[%clk 0:02:18]} 10. Nf4 {[%clk 0:02:31]}  e5 {[%clk 0:02:17]} 11. Nd3 {[%clk 0:02:30]}  O-O {[%clk 0:02:15]} 12. b3 {[%clk 0:02:30]}  Ne8 {[%clk 0:02:14]} 13. Bb2 {[%clk 0:02:10]}  f5 {[%clk 0:02:12]} 14. f4 {[%clk 0:02:10]}  exf4 {[%clk 0:02:12]} 15. Bxg7 {[%clk 0:02:09]}  Nxg7 {[%clk 0:02:13]} 16. Nxf4 {[%clk 0:02:01]}  Qf6 {[%clk 0:02:03]} 17. Qc2 {[%clk 0:02:00]}  Nd7 {[%clk 0:01:52]} 18. Rae1 {[%clk 0:01:59]}  Rae8 {[%clk 0:01:50]} 19. Kh1 {[%clk 0:01:49]}  g5 {[%clk 0:01:44]} 20. Nd3 {[%clk 0:01:37]}  Qg6 {[%clk 0:01:42]} 21. exf5 {[%clk 0:01:24]}  Nxf5 {[%clk 0:01:41]} 22. Rxe8 {[%clk 0:01:21]}  Rxe8 {[%clk 0:01:39]} 23. Nxc5 {[%clk 0:01:05]}  Nxg3+ {[%clk 0:01:37]} 0-1


[Site "https://www.chess.com"]